bitfinex/quotes_ETHUSD_20241101
["timestamp","ask_amount","ask_price","bid_price","bid_amount"]
[1730475545045,3.97393,2516.4,2515.5,0.41116984]
[1730475545257,0.79475,2516.5,2515.3,4.75178]
[1730475545258,3.9747,2516.0,2515.4,0.07950063]
[1730475545449,0.79475,2516.5,2515.3,4.75174]
[1730475545450,3.97417,2516.3,2515.7,3.97492]
[1730475545824,3.97347,2516.7,2515.5,3.97525]
[1730475545825,3.9736,2516.7,2515.8,0.07948957]
[1730475546039,3.9736,2516.7,2516.2,0.775]
[1730475546040,3.97361,2516.6,2516.2,0.775]
[1730475546241,3.97266,2517.2,2516.2,0.775]
[1730475546434,3.97374,2516.6,2515.8,3.97487]
[1730475546641,3.97322,2516.9,2515.7,4.75]
[1730475546837,3.97353,2516.7,2516.1,3.97431]
[1730475547138,3.97361,2516.6,2516.0,3.97446]
[1730475547480,3.97361,2516.6,2516.0,0.07948085]
[1730475547639,3.9737,2516.6,2516.0,3.97454]
[1730475547974,4.48427003,2517.2,2516.1,3.97432]
[1730475547975,3.97329,2516.8,2516.1,3.97432]
[1730475548137,3.97302,2517.0,2516.2,4.05368289]
[1730475548340,0.7637,2517.7,2516.9,3.97311]
[1730475548561,1.19652903,2518.6,2517.1,0.7914]
[1730475548892,3.97077,2518.4,2517.1,0.7914]
[1730475549058,3.97236,2517.4,2517.1,0.7914]
[1730475549569,3.97182,2517.8,2517.1,4.76419]
[1730475549772,3.97246,2517.4,2517.1,0.7914]
[1730475549979,3.97189,2517.7,2517.1,0.7914]
[1730475550182,4.40361903,2518.4,2517.1,0.7914]
[1730475550496,3.97167,2517.9,2517.1,0.87084831]
[1730475550799,3.97108,2518.3,2517.7,3.97178]
[1730475551017,0.397108,2518.3,2517.7,3.97178]
[1730475551312,4.40286903,2518.9,2517.8,0.7805]
[1730475551313,7.93996,2518.9,2517.8,0.7805]
[1730475551496,4.40328903,2518.6,2517.8,0.7805]
[1730475551666,3.97101,2518.3,2517.8,0.7805]
[1730475551867,3.9705,2518.6,2518.0,3.97131]
[1730475552123,3.97008,2518.9,2518.3,3.97092]
[1730475552318,3.97008,2518.9,2518.1,0.07942345]
[1730475552319,0.39928889,2518.9,2518.4,0.07940996]
[1730475552465,3.96968,2519.1,2518.6,0.7989]
[1730475552671,0.43282903,2519.4,2518.7,3.97021]
[1730475553010,9.16368345,2520.1,2518.6,0.7989]
[1730475553011,3.9698,2519.1,2518.6,0.7989]
[1730475553177,0.7526,2520.0,2519.0,3.96979]
[1730475553378,0.7526,2520.0,2518.6,0.7989]
[1730475553379,3.9694,2519.3,2518.6,0.7989]
[1730475553706,4.763252,2519.3,2518.7,3.9703]
[1730475554112,0.793852,2519.3,2518.7,3.9703]
[1730475554273,3.96913,2519.5,2518.7,3.97019]
[1730475554608,3.96932,2519.4,2518.7,3.97017]
[1730475554767,3.96897,2519.6,2518.9,7.93988]
[1730475554968,3.96914,2519.5,2518.9,3.9699]
[1730475555207,0.793811,2519.5,2518.9,3.96986]
[1730475555412,0.793811,2519.5,2518.1,3.97118]
[1730475555413,3.96805,2520.2,2519.5,0.7774]
[1730475555698,0.7956,2520.5,2519.5,4.74632]
[1730475555699,0.43282903,2520.5,2519.5,4.74632]
[1730475555903,0.43282903,2520.5,2519.5,0.7774]
[1730475555904,3.96835,2520.0,2519.5,0.7774]
[1730475556120,3.96857,2519.8,2519.5,0.7774]
[1730475556296,3.96803,2520.2,2519.6,4.04825537]
[1730475556485,3.96771,2520.4,2519.7,3.96869]
[1730475556684,3.9682,2520.1,2519.5,0.7774]
[1730475556907,4.40102903,2520.1,2519.5,0.7774]
[1730475557116,3.96834,2520.0,2519.5,0.7774]
[1730475557315,0.4400539,2520.4,2519.8,3.96856]
[1730475557316,0.43282903,2520.2,2519.8,3.96856]
[1730475557499,3.96786,2520.3,2519.8,3.96854]
[1730475557711,3.96811,2520.1,2519.5,4.74633]
[1730475557913,4.80539939,2520.3,2519.5,0.7774]
[1730475558130,3.96753,2520.5,2519.8,3.96843]
[1730475558331,3.96753,2520.5,2519.9,7.93667]
[1730475558531,4.37179703,2521.0,2519.8,3.96853]
[1730475558532,3.96762,2520.4,2519.8,3.96853]
[1730475559024,3.96766,2520.4,2519.5,0.7774]
[1730475559339,3.96782,2520.3,2519.6,3.96878]
[1730475559485,3.96796,2520.2,2519.6,7.93758]
[1730475559697,3.96782,2520.3,2519.6,3.96878]
[1730475559900,3.96782,2520.3,2519.7,3.96858]
[1730475560301,3.96782,2520.3,2519.8,0.07935629]
[1730475560788,3.0,2520.9,2519.8,3.96844]
[1730475560789,3.96759,2520.5,2519.8,3.96844]
[1730475561031,3.96724,2520.7,2520.1,3.96798]
[1730475561340,3.96693,2520.9,2520.3,3.96778]
[1730475561540,5.67267209,2521.6,2520.1,0.7959]
[1730475561541,5.67264209,2521.6,2520.1,0.7959]
[1730475561749,3.96636,2521.2,2519.6,0.8234]
[1730475562030,3.96858,2519.8,2519.6,0.8234]
[1730475562444,3.96896,2519.6,2519.2,0.8093]
[1730475562589,3.96906,2519.5,2519.2,0.8093]
[1730475563031,3.96891,2519.6,2519.2,0.8093]
[1730475563236,3.96874,2519.7,2519.2,0.8093]
[1730475563419,3.96928,2519.4,2519.2,0.8093]
[1730475563643,0.396874,2519.7,2518.5,3.97052]
[1730475563842,3.96946,2519.3,2518.8,0.8093]
[1730475564026,3.9696,2519.2,2518.8,0.8093]
[1730475564424,3.96946,2519.3,2518.8,0.8093]
[1730475564624,3.96878,2519.7,2518.9,0.07938884]
[1730475564838,3.0,2520.4,2519.1,3.96958]
[1730475565054,3.9688,2519.7,2519.1,3.96958]
[1730475565236,3.96859,2519.8,2519.2,3.96942]
[1730475565555,3.96859,2519.8,2519.1,3.96955]
[1730475565556,0.8131,2519.4,2518.3,0.7894]
[1730475565741,3.97073,2518.5,2518.3,0.7894]
[1730475565942,0.47889121,2519.3,2518.0,4.9713]
[1730475565943,3.97124,2518.1,2518.0,1.0]
[1730475566655,7.94167,2518.4,2518.0,1.0]
[1730475566956,3.96967,2519.1,2518.1,0.07941566]
[1730475567109,3.96975,2519.1,2518.5,3.9705]
[1730475567315,3.97007,2518.9,2518.3,3.97083]
[1730475567565,3.97088,2518.4,2518.0,1.0]
[1730475567833,3.97062,2518.5,2518.0,1.0]
[1730475568054,3.9701,2518.9,2518.3,3.97082]
[1730475568224,3.9701,2518.9,2518.0,1.0]
[1730475568536,3.97023,2518.8,2518.3,0.7598]
[1730475568740,3.97023,2518.8,2518.3,4.73072]
[1730475569013,3.96966,2519.2,2518.3,0.7598]
[1730475569208,3.96998,2518.9,2518.4,3.97069]
[1730475569408,3.96895,2519.6,2518.4,0.07940311]
[1730475569642,3.96992,2519.0,2518.4,3.97067]
[1730475570010,7.93919,2519.2,2518.6,3.97045]
[1730475570360,3.96958,2519.2,2518.7,3.9702]
[1730475570650,3.96909,2519.5,2518.9,3.96991]
[1730475570814,3.9692,2519.4,2518.7,3.97018]
[1730475571012,3.9692,2519.4,2518.9,3.96989]
[1730475571258,3.9692,2519.4,2518.9,3.96995]
[1730475571428,3.96897,2519.6,2519.1,3.96966]
[1730475571759,3.9681,2520.1,2519.5,3.96888]
[1730475572053,3.96893,2519.6,2519.0,4.77334]
[1730475572250,0.39681,2520.1,2519.0,4.77334]
[1730475572251,3.96843,2519.9,2519.0,0.8036]
[1730475572546,3.96843,2519.9,2518.3,0.8064]
[1730475572547,3.96856,2519.8,2518.3,0.8064]
[1730475572755,3.97047,2518.6,2518.3,0.8064]
[1730475572962,3.96943,2519.3,2518.3,0.8064]
[1730475573117,4.41745121,2519.8,2518.3,0.8064]
[1730475573118,3.97008,2518.9,2518.3,0.8064]
[1730475573318,3.97069,2518.5,2518.3,0.8064]
[1730475573512,3.97077,2518.4,2518.0,1.0]
[1730475573712,0.8267,2519.1,2518.0,1.0]
[1730475573713,3.97108,2518.3,2518.0,1.0]
[1730475574013,0.8267,2519.1,2518.0,1.0]
[1730475574213,3.97017,2518.8,2518.3,3.97084]
[1730475574460,3.97018,2518.8,2518.3,3.97084]
[1730475574750,7.9404,2518.8,2518.3,3.97083]
[1730475574974,3.97018,2518.8,2518.2,3.97106]
[1730475575143,3.97047,2518.6,2518.1,3.97114]
[1730475575346,3.96935,2519.3,2518.0,1.0]
[1730475575563,3.97041,2518.7,2518.1,3.97114]
[1730475575745,3.97124,2518.1,2518.0,1.0]
[1730475577074,9.16567345,2518.8,2518.0,1.0]
[1730475577075,5.19552345,2519.2,2518.0,1.7734]
[1730475577280,5.19552345,2519.2,2518.0,1.0]
[1730475577281,3.0,2518.8,2518.0,1.0]
[1730475577477,3.97124,2518.1,2518.0,1.0]
[1730475578442,3.97099,2518.3,2518.0,1.0]
[1730475578650,3.9707,2518.5,2518.0,1.0]
[1730475578864,0.696998,2518.7,2518.0,1.0]
[1730475579187,7.94051,2518.8,2518.3,3.97084]
[1730475579474,5.21178121,2519.3,2518.3,4.79683]
[1730475579475,3.96995,2519.0,2518.3,4.79683]
[1730475579789,3.96915,2519.5,2518.5,7.94122]
[1730475579937,3.96937,2519.3,2518.7,3.9702]
[1730475580145,4.77313,2519.7,2518.9,3.96996]
[1730475580357,3.96917,2519.5,2518.9,3.96989]
[1730475580580,3.96917,2519.5,2518.9,7.93979]
[1730475580789,3.96888,2519.6,2519.0,3.96972]
[1730475580790,7.93789,2519.6,2519.0,3.96972]
[1730475581089,3.96912,2519.5,2519.0,4.73738]
[1730475581240,3.96856,2519.8,2519.1,4.04903521]
[1730475581580,3.96856,2519.8,2519.2,3.96942]
[1730475581767,3.96856,2519.8,2519.1,3.96964]
[1730475581768,3.96913,2519.5,2519.0,0.7676]
[1730475582302,3.96921,2519.4,2519.0,0.7676]
[1730475582600,3.96913,2519.5,2519.0,0.7676]
[1730475582742,3.96913,2519.5,2519.0,4.73734]
[1730475582944,3.96882,2519.7,2519.0,0.7676]
[1730475583197,3.9685,2519.9,2519.3,3.96921]
[1730475583495,9.16320345,2520.4,2519.6,3.96887]
[1730475583496,3.96796,2520.2,2519.6,3.96887]
[1730475583643,3.96796,2520.2,2519.4,3.96907]
[1730475583988,3.96796,2520.2,2519.0,0.7676]
[1730475583989,3.96796,2520.2,2519.3,3.96935]
[1730475584145,3.96778,2520.3,2519.8,3.96848]
[1730475584345,3.96778,2520.3,2519.6,3.96877]
[1730475584346,3.9681,2520.1,2519.6,3.96877]
[1730475584542,3.96793,2520.2,2519.3,3.96932]
[1730475584854,3.96867,2519.8,2519.2,7.93883]
[1730475585059,3.96867,2519.8,2519.3,3.96934]
[1730475585369,3.96851,2519.9,2519.4,0.07937577]
[1730475585573,3.96855,2519.9,2519.4,0.07937577]
[1730475585786,0.91623735,2520.8,2519.9,3.96832]
[1730475586004,0.91623735,2520.8,2519.5,0.8003]
[1730475586005,7.93334,2521.0,2519.5,4.76929]
[1730475586287,3.96781,2520.3,2519.7,3.96871]
[1730475586469,3.96781,2520.3,2519.8,3.96853]
[1730475586697,3.9673,2520.6,2519.5,0.8003]
[1730475586981,3.96773,2520.4,2519.9,3.96829]
[1730475587192,7.93447,2520.7,2519.7,3.96872]
[1730475587402,3.9677,2520.4,2519.7,3.96872]
[1730475587559,3.96831,2520.0,2519.5,4.76919]
[1730475587761,3.968,2520.2,2519.7,3.96858]
[1730475587995,3.968,2520.2,2519.5,0.8003]
[1730475587996,3.9682,2520.1,2519.5,4.76919]
[1730475588295,3.96842,2519.9,2519.5,4.76919]
[1730475588474,0.79367,2519.9,2519.2,0.7704]
[1730475588643,3.96857,2519.8,2519.2,0.7704]
[1730475588845,3.7939,2520.5,2519.2,0.7704]
[1730475588846,3.96882,2519.7,2519.2,0.7704]
[1730475589075,3.96882,2519.7,2519.2,4.73989]
[1730475589274,3.96857,2519.8,2519.3,3.96927]
[1730475589588,3.96853,2519.9,2519.3,3.96927]
[1730475589792,3.96853,2519.9,2519.4,3.96914]
[1730475589981,3.9678,2520.3,2519.4,3.96914]
[1730475589982,3.96808,2520.2,2519.6,3.96878]
[1730475590180,3.96817,2520.1,2519.5,3.96904]
[1730475590491,0.7939,2520.5,2519.2,0.7704]
[1730475590697,3.9679,2520.3,2519.8,3.96845]
[1730475590907,0.44449212,2521.0,2519.1,3.9696]
[1730475590908,4.73157,2521.3,2519.9,0.0793619]
[1730475591089,3.96636,2521.2,2520.7,3.96706]
[1730475591252,3.96676,2521.0,2520.5,3.96738]
[1730475591452,3.96676,2521.0,2519.7,3.96868]
[1730475591453,3.96771,2520.4,2519.9,4.75989]
[1730475591689,3.96749,2520.5,2520.0,3.96812]
[1730475592267,3.9674,2520.6,2519.9,4.75989]
[1730475592594,3.96804,2520.2,2519.9,0.7916]
[1730475593501,3.96804,2520.2,2519.1,5.19552345]
[1730475593502,3.0,2519.9,2518.3,2.00920459]
[1730475593737,3.97032,2518.7,2518.3,1.22960459]
[1730475593873,3.97109,2518.2,2518.1,0.41178535]
[1730475594211,3.97109,2518.2,2518.0,1.0]
[1730475594212,3.97124,2518.1,2518.0,1.0]
[1730475594561,4.765473,2518.1,2518.0,1.0]
[1730475594756,8.534673,2518.1,2518.0,1.0]
[1730475596163,0.766,2517.6,2516.5,0.7705]
[1730475596564,3.97292,2517.1,2516.5,0.7705]
[1730475596872,3.97253,2517.3,2516.6,4.05304228]
[1730475597200,3.97253,2517.3,2516.7,3.97341]
[1730475597404,3.97253,2517.3,2516.6,3.97351]
[1730475597616,3.97282,2517.1,2516.6,3.97351]
[1730475597925,7.73806,2517.6,2516.5,0.7705]
[1730475597926,3.97308,2517.0,2516.5,0.7705]
[1730475598216,3.97372,2516.6,2516.3,0.41162859]
[1730475598413,3.97379,2516.5,2516.1,0.8042]
[1730475598597,3.97379,2516.5,2515.9,3.97467]
[1730475598598,3.97397,2516.4,2515.7,0.8166]
[1730475598800,3.97397,2516.4,2515.7,1.30267839]
[1730475599005,5.19552345,2516.9,2515.9,3.97456]
[1730475599173,3.97389,2516.5,2515.7,0.8166]
[1730475599377,3.97329,2516.8,2515.7,0.8166]
[1730475599574,3.9745,2516.1,2515.3,3.97563]
[1730475599777,3.97475,2515.9,2515.3,4.846583]
[1730475600013,7.94956,2515.9,2515.3,4.846523]
[1730475600225,3.97458,2516.0,2515.3,3.97557]
[1730475600427,9.17000345,2516.1,2515.0,0.005]
[1730475600721,9.17000345,2516.1,2515.1,3.97598]
[1730475600722,3.97499,2515.8,2515.1,3.97598]
[1730475601023,3.97456,2516.0,2515.3,3.97558]
[1730475601024,3.97458,2516.0,2515.3,3.97558]
[1730475601307,3.97456,2516.0,2515.1,0.41156342]
[1730475601465,5.19552345,2516.1,2515.0,0.005]
[1730475601466,3.97497,2515.8,2515.0,0.005]
[1730475601617,3.0,2516.3,2515.2,3.97567]
[1730475601618,3.97468,2516.0,2515.2,3.97567]
[1730475601817,3.97468,2516.0,2515.4,3.97551]
[1730475602062,5.98132345,2516.5,2515.5,0.07949947]
[1730475602063,0.7858,2516.5,2515.5,0.07949947]
[1730475602222,5.19552345,2516.9,2515.5,0.07949947]
[1730475602223,9.92170345,2516.9,2515.8,0.7626]
[1730475602422,9.92170345,2516.9,2515.1,3.97594]
[1730475602423,3.97393,2516.4,2515.3,0.7626]
[1730475602753,1.38947135,2516.8,2515.0,0.005]
[1730475602754,3.97598,2515.1,2515.0,0.005]
[1730475603138,4.72888,2515.1,2515.0,0.005]
[1730475603340,7.72888,2515.1,2515.0,0.005]
[1730475604078,0.45528134,2515.8,2515.0,0.005]
[1730475604079,3.60818176,2515.6,2515.0,0.005]
[1730475604217,3.97463,2516.0,2515.1,0.8218]
[1730475604524,3.97463,2516.0,2515.0,0.005]
[1730475604525,3.97521,2515.6,2515.0,0.005]
[1730475604738,3.97598,2515.1,2515.0,0.005]
[1730475604929,3.97569,2515.3,2514.1,0.0392004]
[1730475604930,3.97614,2515.0,2514.1,0.0392004]
[1730475605131,4.7617,2514.2,2514.1,0.0392004]
[1730475605329,3.97929,2513.1,2512.3,10.64039]
[1730475605537,4.76356,2513.1,2512.4,0.07959334]
[1730475605718,3.97948,2512.9,2512.4,0.4107423]
[1730475605929,4.76356,2513.1,2512.1,3.98064]
[1730475606128,4.76356,2513.1,2511.7,9.17683345]
[1730475606129,4.76356,2513.1,2512.4,3.98015]
[1730475606327,3.0,2513.6,2512.5,0.07959656]
[1730475606328,0.7982,2513.6,2512.5,0.07959656]
[1730475606561,3.97893,2513.3,2512.2,0.39831265]
[1730475606769,0.7982,2513.6,2512.3,3.9803]
[1730475606770,3.97935,2513.0,2512.3,3.9803]
[1730475606949,0.7982,2513.6,2512.5,3.98008]
[1730475606950,3.97913,2513.2,2512.5,3.98008]
[1730475607130,4.7766,2513.6,2512.1,0.41092146]
[1730475607131,3.0,2513.5,2512.1,0.41092146]
[1730475607338,3.98057,2512.2,2512.1,0.41092146]
[1730475607553,3.98057,2512.2,2511.9,0.25]
[1730475607554,3.98073,2512.1,2511.9,0.25]
[1730475607924,4.77686,2512.1,2511.9,0.25]
[1730475608126,3.98247,2511.0,2510.9,0.41019447]
[1730475608328,3.7551,2510.9,2510.0,5.18911776]
[1730475608622,3.98327,2510.5,2510.0,5.12]
[1730475608851,3.9828,2510.8,2510.1,3.98386]
[1730475609021,0.7551,2510.9,2510.1,3.9839]
[1730475609229,3.98097,2512.0,2510.1,3.9839]
[1730475609230,3.98147,2511.7,2510.1,0.8017]
[1730475609524,3.98126,2511.8,2510.4,5.19552345]
[1730475609768,3.98085,2512.1,2511.3,3.98189]
[1730475609972,3.98196,2511.4,2510.6,3.98306]
[1730475610277,3.98276,2510.9,2510.2,3.9836]
[1730475610561,3.98339,2510.5,2510.0,5.12]
[1730475610768,0.756,2511.2,2510.2,3.9836]
[1730475610769,3.98236,2511.1,2510.2,3.9836]
[1730475610925,3.98258,2511.0,2510.1,0.512]
[1730475611127,0.756,2511.2,2510.1,0.512]
[1730475611128,4.73828,2511.2,2510.4,3.98332]
[1730475611328,0.756,2511.2,2510.1,0.512]
[1730475611659,0.756,2511.2,2510.0,5.12]
[1730475611660,3.98324,2510.6,2510.0,5.12]
[1730475611867,3.98324,2510.6,2510.1,0.91042]
[1730475612161,1.30858865,2511.2,2510.0,5.12]
[1730475612162,3.0,2510.5,2510.0,5.12]
[1730475612471,0.756,2511.2,2510.0,5.12]
[1730475612641,0.756,2511.2,2510.1,4.49581]
[1730475612642,3.98262,2511.0,2510.1,4.49581]
[1730475612844,3.98262,2511.0,2510.0,5.12]
[1730475612845,3.98231,2511.1,2510.0,5.12]
[1730475613153,3.98352,2510.4,2510.0,5.12]
[1730475613353,3.9839,2510.1,2510.0,5.12]
[1730475613544,4.783,2510.1,2510.0,5.12]
[1730475613944,3.98347,2510.4,2510.0,5.12]
[1730475614132,0.8013,2510.7,2510.0,5.12]
[1730475614133,0.8013,2510.7,2510.0,5.632]
[1730475614359,0.8013,2511.2,2510.0,5.632]
[1730475614574,3.98293,2510.8,2510.1,3.98379]
[1730475615071,0.8013,2511.2,2510.1,3.9839]
[1730475615243,0.8013,2511.2,2510.0,9.10397]
[1730475615244,3.98298,2510.7,2510.0,9.10397]
[1730475615569,3.98298,2510.7,2510.0,5.12]
[1730475615771,3.9837,2510.3,2510.0,5.12]
[1730475615987,4.7669,2510.3,2510.0,5.12]
[1730475616136,0.7832,2510.8,2510.0,5.12]
[1730475616344,3.98151,2511.7,2510.8,3.98266]
[1730475616345,3.98143,2511.7,2510.8,3.98266]
[1730475616562,3.98139,2511.7,2510.9,3.98262]
[1730475616872,5.19552345,2512.4,2510.0,11.08992345]
[1730475616873,1.593135,2511.9,2511.5,3.98156]
[1730475617039,1.593135,2511.9,2510.7,3.98283]
[1730475617040,3.98057,2512.2,2511.4,0.7521]
[1730475617588,0.7925,2512.4,2511.8,3.98116]
[1730475617883,0.47725,2512.4,2511.4,0.7521]
[1730475618187,0.47725,2512.4,2511.0,3.98232]
[1730475618188,0.52233923,2512.3,2511.0,3.98232]
[1730475618395,4.50282923,2512.3,2511.0,3.98239]
[1730475618572,0.7925,2511.9,2510.3,0.7521]
[1730475618901,1.06782058,2511.8,2510.0,5.12]
[1730475619198,4.4715764,2511.8,2510.3,3.98347]
[1730475619369,6.98203,2511.3,2510.6,3.98295]
[1730475619553,3.0,2511.3,2510.6,3.98295]
[1730475619754,3.98201,2511.3,2510.6,3.98295]
[1730475619955,3.98201,2511.3,2510.0,5.12]
[1730475619956,3.98296,2510.7,2510.0,5.12]
[1730475620179,3.98327,2510.5,2510.0,5.12]
[1730475620361,3.98371,2510.3,2510.0,5.12]
[1730475620559,6.98241,2511.1,2510.0,5.12]
[1730475620762,3.98361,2510.3,2510.0,5.12]
[1730475621076,3.98323,2510.6,2510.0,5.12]
[1730475621275,3.98312,2510.6,2510.0,5.12]
[1730475621473,3.98312,2510.6,2510.0,9.10404]
[1730475621695,3.0,2511.1,2510.0,5.12]
[1730475622011,3.98239,2511.1,2510.0,5.12]
[1730475622192,3.98121,2511.8,2510.0,5.12]
[1730475622193,8.79584,2511.7,2510.9,3.9826]
[1730475622501,0.8329,2512.2,2511.1,3.98226]
[1730475622700,3.98066,2512.2,2511.6,4.74333]
[1730475622915,3.98011,2512.5,2511.9,3.98091]
[1730475623200,3.98011,2512.5,2511.8,3.98109]
[1730475623201,4.77614,2512.5,2511.8,3.98109]
[1730475623404,3.98051,2512.3,2511.6,4.74333]
[1730475623903,3.98047,2512.3,2511.5,3.98164]
[1730475624285,3.97983,2512.7,2511.3,3.982]
[1730475624286,3.97978,2512.7,2511.3,3.98191]
[1730475624464,3.97978,2512.7,2511.2,0.8176]
[1730475624465,3.98101,2512.0,2511.2,0.8176]
[1730475624663,3.98009,2512.5,2511.4,7.96355]
[1730475624889,7.62101145,2512.8,2511.5,3.98153]
[1730475624890,3.98046,2512.3,2511.5,3.98153]
[1730475625101,3.98067,2512.2,2511.5,3.98153]
[1730475625274,3.98046,2512.3,2511.5,3.98153]
[1730475625478,3.98046,2512.3,2511.2,0.8176]
[1730475625479,3.9802,2512.5,2511.7,3.98135]
[1730475625797,9.38545555,2513.2,2511.7,3.98135]
[1730475625798,3.97952,2512.9,2512.1,3.98061]
[1730475625966,3.97925,2513.1,2511.7,0.398135]
[1730475625967,3.98051,2512.3,2511.7,0.398135]
[1730475626162,3.98051,2512.3,2511.5,3.98159]
[1730475626163,3.98067,2512.2,2511.5,3.98159]
[1730475626368,3.98051,2512.3,2511.7,3.98134]
[1730475626564,3.98012,2512.5,2511.8,3.98119]
[1730475626793,3.97914,2513.1,2511.6,3.98151]
[1730475627070,3.9793,2513.0,2511.9,3.981]
[1730475627265,0.74381639,2512.9,2512.1,3.98064]
[1730475627460,3.97969,2512.8,2512.0,3.98077]
[1730475627996,3.98034,2512.4,2511.7,3.98127]
[1730475628198,3.98034,2512.4,2510.9,3.98262]
[1730475628199,3.97958,2512.9,2512.2,3.98046]
[1730475628393,3.97958,2512.9,2512.0,4.78761]
[1730475628394,3.98138,2511.7,2511.1,0.8068]
[1730475628610,3.98214,2511.3,2510.7,4.78968]
[1730475628847,4.79094,2511.3,2510.6,3.98301]
[1730475628997,3.98193,2511.4,2510.8,3.98267]
[1730475629193,3.98161,2511.6,2510.9,3.98253]
[1730475629397,4.7901,2511.8,2511.0,3.98235]
[1730475629398,3.98136,2511.7,2511.0,3.98235]
[1730475629649,3.98146,2511.7,2510.4,5.19552345]
[1730475629799,3.0,2512.2,2510.4,5.19552345]
[1730475629800,6.98059,2512.2,2510.6,0.77]
[1730475629995,3.98089,2512.0,2511.5,0.7801]
[1730475630196,3.98044,2512.3,2511.7,3.98134]
[1730475630399,3.98044,2512.3,2511.5,0.7801]
[1730475630400,3.98082,2512.1,2511.5,0.7801]
[1730475630704,3.98082,2512.1,2511.5,4.76166]
[1730475630908,3.98049,2512.3,2511.5,4.76166]
[1730475631324,3.98068,2512.2,2511.5,4.76166]
[1730475631568,8.757417,2512.2,2511.5,0.7801]
[1730475631881,3.98118,2511.9,2511.5,0.7801]
[1730475632048,3.98152,2511.6,2511.5,0.7801]
[1730475632468,0.796117,2512.2,2511.0,0.785]
[1730475632638,3.9821,2511.3,2511.0,0.785]
[1730475632834,3.0,2512.2,2511.0,0.785]
[1730475632835,3.98174,2511.5,2511.0,0.785]
[1730475633175,3.97973,2512.8,2511.4,3.98184]
[1730475633335,3.97973,2512.8,2510.1,3.98385]
[1730475633336,3.9794,2513.0,2512.2,3.98045]
[1730475633537,0.8217,2513.3,2512.1,0.785]
[1730475633538,3.98044,2512.3,2512.1,0.785]
[1730475633740,3.98033,2512.4,2512.1,0.785]
[1730475633985,3.98089,2512.0,2511.6,0.8321]
[1730475634145,0.398033,2512.4,2511.6,0.8321]
[1730475634340,3.98086,2512.1,2511.4,3.9817]
[1730475634541,3.98086,2512.1,2511.5,3.98159]
[1730475634777,3.98103,2512.0,2511.3,3.98198]
[1730475634981,7.96138,2512.2,2511.5,3.98156]
[1730475635211,3.98156,2511.6,2511.1,4.81436]
[1730475635379,4.776928,2512.1,2510.6,3.98308]
[1730475635380,3.98215,2511.2,2510.6,0.8255]
[1730475635564,3.98241,2511.1,2510.6,0.8255]
[1730475635772,6.98158,2511.6,2510.6,0.8255]
[1730475635973,3.9839,2510.1,2510.0,5.12]
[1730475636482,3.98312,2510.6,2510.0,5.12]
[1730475636653,3.98375,2510.2,2510.0,5.12]
[1730475636860,3.9835,2510.4,2510.0,5.12]
[1730475637198,3.98321,2510.6,2510.0,5.12]
[1730475637491,3.98304,2510.7,2510.1,3.98382]
[1730475637651,3.98311,2510.6,2510.1,4.05190263]
[1730475637849,3.98304,2510.7,2510.1,4.05189263]
[1730475638054,7.96608,2510.7,2510.1,4.05189263]
[1730475638353,3.98222,2511.2,2510.1,4.05197263]
[1730475638555,4.463712,2511.2,2510.1,1.04460189]
[1730475638893,3.98367,2510.3,2510.1,0.06808263]
[1730475639103,3.98332,2510.5,2510.1,0.06808263]
[1730475639279,3.98343,2510.4,2510.1,0.06808263]
[1730475639483,3.98305,2510.7,2510.1,4.05197263]
[1730475639827,3.98374,2510.2,2510.1,0.06808263]
[1730475640709,3.98213,2511.3,2510.1,0.06808263]
[1730475640710,0.8092,2511.1,2510.1,0.06808263]
[1730475640868,0.8092,2511.1,2510.0,9.10393]
[1730475641075,3.98247,2511.0,2510.4,3.98329]
[1730475641276,3.98188,2511.4,2510.1,0.988623]
[1730475641277,3.98222,2511.2,2510.6,3.98301]
[1730475641512,3.98194,2511.4,2510.9,3.9826]
[1730475641687,3.00254332,2512.0,2510.9,3.9826]
[1730475641688,0.7988,2512.0,2511.1,3.98229]
[1730475641872,3.98147,2511.7,2511.1,3.98221]
[1730475642205,3.98116,2511.9,2511.2,4.0474363]
[1730475642378,3.9808,2512.1,2511.3,3.982]
[1730475642599,3.97996,2512.6,2511.6,4.80418]
[1730475642902,3.97953,2512.9,2512.2,3.98054]
[1730475643205,3.97923,2513.1,2512.5,4.80266]
[1730475643408,3.97903,2513.2,2512.6,3.97979]
[1730475643620,3.97893,2513.3,2512.6,4.04321906]
[1730475643906,3.97932,2513.0,2512.6,0.06342906]
[1730475644105,0.397893,2513.3,2512.6,0.06342906]
[1730475644311,3.97949,2512.9,2512.6,0.06342906]
[1730475644814,3.97978,2512.7,2512.6,0.06342906]
[1730475645174,3.98069,2512.2,2510.9,0.8031]
[1730475645407,3.98069,2512.2,2511.6,3.98141]
[1730475645614,3.98031,2512.4,2510.9,0.8031]
[1730475645615,3.98031,2512.4,2511.8,3.98106]
[1730475645814,4.76978,2512.8,2511.8,3.98106]
[1730475645815,3.9798,2512.7,2511.9,3.98091]
[1730475646111,3.97965,2512.8,2512.3,3.9804]
[1730475646553,3.97965,2512.8,2512.1,3.98063]
[1730475646554,3.97983,2512.7,2512.4,0.06095414]
[1730475646714,3.97996,2512.6,2512.4,0.06095414]
[1730475646918,4.377813,2512.7,2512.1,3.98066]